fUSD/lending_fUSD_20240915
["ID","MTS","AMOUNT","RATE_DAILY","PERIOD"]
[338182884,1726373443668,-3414.2003565,0.0001399,2]
[338182885,1726373443677,-1910.4736284,0.0001399,2]
[338182886,1726373443686,-1529.1732784,0.0001399,2]
[338182887,1726373443695,-225.252996,0.0001399,2]
[338182888,1726373443704,-225.252988,0.0001399,2]
[338182889,1726373443713,-246.2147391,0.0001399,2]
[338182890,1726373443723,-246.2147391,0.0001399,2]
[338182891,1726373443732,-2330.716561,0.0001399,2]
[338182892,1726373443742,-214.396237,0.0001399,2]
[338182893,1726373443751,-214.396228,0.0001399,2]
[338182894,1726373443760,-496.1282928,0.0001399,2]
[338182895,1726373443769,-560.7629262,0.0001399,2]
[338182896,1726373443778,-13440.3470118,0.0001399,2]
[338182897,1726373443788,-15191.329398,0.0001399,2]
[338182898,1726373443796,-28615.1674034,0.0001399,2]
[338182899,1726373443807,-2425.6626507,0.0001399,2]
[338182900,1726373443816,-2127.9725821,0.0001399,2]
[338182901,1726373443825,-207.0,0.00014,2]
[338182902,1726373443835,-500.0,0.00014,2]
[338182903,1726373443844,-500.0,0.00014,2]
[338182904,1726373443853,-500.0,0.00014,2]
[338182905,1726373443863,-500.0,0.00014,2]
[338182906,1726373443872,-500.0,0.00014,2]
[338182907,1726373443881,-500.0,0.00014,2]
[338182908,1726373443890,-500.0,0.00014,2]
[338182909,1726373443899,-500.0,0.00014,2]
[338182910,1726373443909,-500.0,0.00014,2]
[338182911,1726373443918,-500.0,0.00014,2]
[338182912,1726373443927,-500.0,0.00014,2]
[338182913,1726373443935,-500.0,0.00014,2]
[338182914,1726373443944,-500.0,0.00014,2]
[338182915,1726373443953,-500.0,0.00014,2]
[338182916,1726373443962,-500.0,0.00014,2]
[338182917,1726373443971,-500.0,0.00014,2]
[338182918,1726373443981,-500.0,0.00014,2]
[338182919,1726373443992,-503.61,0.00014,2]
[338182920,1726373444002,-500.0,0.00014,2]
[338182921,1726373444012,-500.0,0.00014,2]
[338182922,1726373444021,-500.0,0.00014,2]
[338182923,1726373444030,-500.0,0.00014,2]
[338182924,1726373444039,-500.0,0.00014,2]
[338182925,1726373444049,-500.0,0.00014,2]
[338182926,1726373444069,-500.0,0.00014,2]
[338182927,1726373444078,-500.0,0.00014,2]
[338182928,1726373444087,-500.0,0.00014,2]
[338182929,1726373444097,-489.07,0.00014,2]
[338182930,1726373444106,-407631.41023706,0.00014,4]
[338182931,1726373444115,-151.0,0.00014,2]
[338182932,1726373444124,-515.0,0.00014,2]
[338182933,1726373444133,-150.0,0.00014,5]
[338182934,1726373444142,-6018.98046582,0.00014011,2]
[338182935,1726373444151,-200.01091844,0.00014043,2]
[338182936,1726373444161,-235.21009,0.0001405,2]
[338182937,1726373444170,-201.0,0.000141,2]
[338182938,1726373444181,-700.96223,0.000141,2]
[338182939,1726373444190,-152.0,0.00014127,8]
[338182940,1726373444200,-207.0,0.0001413,2]
[338182941,1726373444209,-32343.0960095,0.00014224,2]
[338182942,1726373444219,-2741.6732844,0.00014224,2]
[338182943,1726373444228,-6018.98046582,0.00014233,2]
[338182944,1726373444239,-150.16,0.00014243,2]
[338182945,1726373444248,-207.0,0.0001425,2]
[338182946,1726373444258,-201.0,0.0001425,2]
[338182947,1726373444271,-215.0,0.0001429,2]
[338182948,1726373444280,-152.0,0.00014296,9]
[338182949,1726373444289,-1782.4839973,0.00014319,2]
[338182950,1726373444299,-200.01091844,0.00014329,2]
[338182951,1726373444311,-215.0,0.0001435,2]
[338182952,1726373444320,-207.0,0.0001438,2]
[338182953,1726373444329,-201.0,0.000144,2]
[338182954,1726373444338,-215.0,0.0001442,2]
[338182955,1726373444347,-6018.98046582,0.00014456,2]
[338182956,1726373444357,-152.0,0.00014466,10]
[338182957,1726373444366,-215.0,0.0001448,2]
[338182958,1726373444375,-1625.0712545,0.000145,2]
[338182959,1726373444385,-207.0,0.000145,2]
[338182960,1726373444395,-796.0,0.00014514,2]
[338182961,1726373444404,-215.0,0.0001455,2]
[338182962,1726373444413,-201.0,0.0001455,2]
[338182963,1726373444422,-215.0,0.0001461,2]
[338182964,1726373444431,-200.01091844,0.00014614,2]
[338182965,1726373444440,-207.0,0.0001463,2]
[338182966,1726373444449,-152.0,0.00014635,11]
[338182967,1726373444459,-6018.98046582,0.00014678,2]
[338182968,1726373444468,-215.0,0.0001468,2]
[338182969,1726373444477,-201.0,0.000147,2]
[338182970,1726373444486,-150.072,0.00014709,2]
[338182971,1726373444496,-202.89733083,0.0001473,2]
[338182972,1726373444506,-215.0,0.0001474,2]
[338182973,1726373444515,-207.0,0.0001475,2]
[338182974,1726373444525,-240.31,0.00014781,2]
[338182975,1726373444533,-152.0,0.00014805,12]
[338182976,1726373444543,-215.0,0.0001481,2]
[338182977,1726373444554,-201.0,0.0001485,2]
[338182978,1726373444564,-215.0,0.0001487,2]
[338182979,1726373444573,-207.0,0.0001488,2]
[338182980,1726373444583,-472.0,0.000149,4]
[338182981,1726373444593,-9351.16680151,0.000149,2]
[338182982,1726373444603,-5800.0,0.000149,2]
[338182983,1726373444612,-6018.98046582,0.000149,2]
[338182984,1726373444622,-200.01091844,0.000149,2]
[338182985,1726373444632,-215.0,0.0001493,2]
[338182986,1726373444641,-152.0,0.00014974,13]
[338182987,1726373444651,-207.0,0.0001499,2]
[338182988,1726373444660,-215.0,0.0001499,2]
[338182989,1726373444670,-201.0,0.0001499,2]
[338182990,1726373444679,-165.55976347,0.00014999,2]
[338182991,1726373444689,-2267.43593553,0.00014999,2]
[338182992,1726373444699,-419.7901,0.00014999,2]
[338182993,1726373444709,-202520.8232946,0.00014999,5]
[338182994,1726373444718,-5273119.05534591,0.00015,2]
[338182995,1726373445425,-51832.92783422,0.00015,2]
[338182996,1726373445501,-2310.60236363,0.00015,2]
[338182997,1726373445512,-905.1421542,0.00015,2]
[338183001,1726373508828,157.3,0.00010959,2]
[338183002,1726373567542,201.0,0.0001262,2]
[338183003,1726373567890,201.0,0.0001244,2]
[338183004,1726373568156,201.0,0.0001225,2]
[338183005,1726373568466,201.0,0.0001207,2]
[338183006,1726373568847,201.0,0.0001189,2]
[338183007,1726373569197,201.0,0.0001171,2]
[338183010,1726373697494,11509.0,0.000102,5]
[338183011,1726373782950,484.0,0.00011,4]
[338183013,1726373879966,234.17,0.00011173,2]
[338183014,1726374148778,1050.0,0.00011,2]
[338183016,1726374412388,236.86,0.00010775,2]
[338183017,1726374492085,380.38,0.00012507,2]
[338183024,1726374565983,250.0,0.00012555,2]
[338183025,1726374587392,250.0,0.00012555,2]
[338183037,1726374631962,-201.0,0.000128,2]
[338183038,1726374631971,-300.0,0.00012828,2]
[338183039,1726374631980,-81.92504737,0.00012829,2]
[338183040,1726374632028,-5118.3243597,0.00012829,2]
[338183041,1726374632076,-4814.45059293,0.00012829,2]
[338183042,1726374632085,-328.8626243,0.000129,2]
[338183043,1726374632095,-3558.52584302,0.000129,2]
[338183044,1726374632104,-158.82,0.00012956,2]
[338183045,1726374632113,-520.85736906,0.00012956,2]
[338183046,1726374632123,-1000.0,0.0001297,2]
[338183047,1726374632131,-500.0,0.00012973,2]
[338183048,1726374632140,-434.52846814,0.00012973,2]
[338183049,1726374632149,-500.0,0.00012973,2]
[338183050,1726374632158,-1881.78,0.00012978,2]
[338183051,1726374632167,-201.0,0.0001299,2]
[338183052,1726374632177,-152.33,0.0001299,2]
[338183053,1726374632186,-150.0,0.00012997,2]
[338183054,1726374632195,-28820.13131133,0.00012998,2]
[338183055,1726374632204,-500.0,0.00012999,2]
[338183056,1726374632213,-500.0,0.00012999,2]
[338183057,1726374632222,-500.0,0.00012999,2]
[338183058,1726374632232,-500.0,0.00012999,2]
[338183059,1726374632241,-500.0,0.00012999,2]
[338183060,1726374632250,-190.24395901,0.00012999,2]
[338183061,1726374632259,-178.84028189,0.00012999,2]
[338183062,1726374632269,-500.0,0.00012999,2]
[338183063,1726374632278,-500.0,0.00012999,2]
[338183064,1726374632287,-500.0,0.00012999,2]
[338183065,1726374632297,-500.0,0.00012999,2]
[338183066,1726374632306,-500.0,0.00012999,2]
[338183067,1726374632316,-500.0,0.00012999,2]
[338183068,1726374632325,-532.34829311,0.00012999,2]
[338183069,1726374632334,-500.0,0.00012999,2]
[338183070,1726374632344,-500.0,0.00012999,2]
[338183071,1726374632353,-500.0,0.00012999,2]
[338183072,1726374632362,-500.0,0.00012999,2]
[338183073,1726374632372,-500.0,0.00012999,2]
[338183074,1726374632381,-500.0,0.00012999,2]
[338183075,1726374632390,-500.0,0.00012999,2]
[338183076,1726374632399,-500.0,0.00012999,2]
[338183077,1726374632408,-500.0,0.00012999,2]
[338183078,1726374632417,-500.0,0.00012999,2]
[338183079,1726374632427,-500.0,0.00012999,2]
[338183080,1726374632436,-500.0,0.00012999,2]
[338183081,1726374632445,-500.0,0.00012999,2]
[338183082,1726374632455,-500.0,0.00012999,2]
[338183083,1726374632464,-500.0,0.00012999,2]
[338183084,1726374632473,-500.0,0.00012999,2]
[338183085,1726374632483,-8735.24686228,0.00013,2]
[338183086,1726374632637,-296.96,0.00013,2]
[338183087,1726374632652,-86535.70180252,0.00013,2]
[338183088,1726374632697,-35960.78860948,0.00013,2]
[338183089,1726374632709,-1765.2517191,0.00013,2]
[338183090,1726374632720,-1752.99828896,0.00013,2]
[338183091,1726374632743,-996.18561621,0.00013,2]
[338183092,1726374638314,-837838.34683679,0.00013,2]
[338183097,1726374640193,-2984.16293888,0.00013,2]
[338183098,1726374640205,-10020.87257335,0.00013,2]
[338183099,1726374640262,-400016.89347905,0.00013,2]
[338183100,1726374640273,-1285.05571944,0.00013,2]
[338183103,1726374640317,-3624.4260009,0.00013,2]
[338183104,1726374640328,-647.526547,0.00013,2]
[338183105,1726374640339,-739.70005,0.00013,2]
[338183106,1726374640351,-669.21960628,0.00013,2]
[338183107,1726374640362,-1120.72594201,0.00013,2]
[338183108,1726374640374,-217437.38441741,0.00013,2]
[338183109,1726374642988,-184103.83481637,0.00013,2]
[338183110,1726374643000,-632.52348141,0.00013,2]
[338183111,1726374643010,-3395.57123752,0.00013,2]
[338183112,1726374643022,-1311.45,0.00013,2]
[338183113,1726374643034,-800.90047991,0.00013,2]
[338183114,1726374643067,-1625.7938459,0.00013,2]
[338183115,1726374643082,-612.5,0.00013,2]
[338183116,1726374643384,-494.33920324,0.00013,2]
[338183117,1726374643396,-296.18044634,0.00013,2]
[338183118,1726374643407,-9250.7235472,0.00013,2]
[338183120,1726374643430,-4336.95767507,0.00013,2]
[338183122,1726374643442,-3558.0,0.00013,2]
[338183124,1726374643453,-1279.97005618,0.00013,2]
[338183126,1726374643464,-753.48461245,0.00013,2]
[338183128,1726374643476,-10539.79333542,0.00013,2]
[338183130,1726374643487,-2526.94424042,0.00013,2]
[338183133,1726374643678,-817.91371291,0.00013,2]
[338183134,1726374643690,-931.07495059,0.00013,2]
[338183135,1726374643702,-289.34499,0.00013,2]
[338183136,1726374643713,-407.97,0.00013,2]
[338183137,1726374643724,-2159.59999991,0.00013,2]
[338183138,1726374643735,-2974.33211636,0.00013,2]
[338183139,1726374643747,-4616.80177371,0.00013,2]
[338183140,1726374643758,-56951.87989369,0.00013,2]
[338183141,1726374643769,-16193.59417269,0.00013,2]
[338183142,1726374643819,-9022.73171167,0.00013,2]
[338183143,1726374643829,-11740.77866889,0.00013,2]
[338183144,1726374645985,-501.58556108,0.00013,2]
[338183145,1726374645996,-643.38174464,0.00013,2]
[338183146,1726374646041,-2311.24974926,0.00013,2]
[338183147,1726374646053,-740.63245774,0.00013,2]
[338183148,1726374646066,-660.32229313,0.00013,2]
[338183149,1726374646078,-640.6149,0.00013,2]
[338183150,1726374646091,-373.49586585,0.00013,2]
[338183151,1726374646103,-2673.4011696,0.00013,2]
[338183152,1726374646115,-1933.99298,0.00013,2]
[338183153,1726374646127,-54847.26024412,0.00013,2]
[338183154,1726374646149,-1867.26480771,0.00013,2]
[338183155,1726374646161,-1064.7,0.00013,2]
[338183156,1726374646172,-1822.16356718,0.00013,2]
[338183157,1726374646183,-686.96804013,0.00013,2]
[338183158,1726374646194,-1445.87941935,0.00013,2]
[338183159,1726374646205,-1047.79674999,0.00013,2]
[338183187,1726374646684,-810.7547,0.00013,2]
[338183189,1726374646809,-21291.84966045,0.00013,2]
[338183190,1726374646821,-856.2321508,0.00013,2]
[338183191,1726374646832,-1471.28107179,0.00013,2]
[338183192,1726374646843,-620.1702649,0.00013,2]
[338183193,1726374646894,-253.52,0.00013,2]
[338183194,1726374646906,-1634.19137595,0.00013,2]
[338183195,1726374646916,-1753.29721596,0.00013,2]
[338183196,1726374646927,-63087.38289885,0.00013,2]
[338183197,1726374646939,-3095.56445462,0.00013,2]
[338183198,1726374646950,-502.643246,0.00013,2]
[338183199,1726374646962,-2948.18789835,0.00013,2]
[338183200,1726374646973,-547.84176427,0.00013,2]
[338183201,1726374690866,172.93,0.00010959,2]
[338183207,1726374899324,225.01,0.00010973,2]
[338183208,1726375099869,250.0,0.00012632,2]
[338183209,1726375111047,250.0,0.00012632,2]
[338183210,1726375152230,1000.0,0.00012632,2]
[338183211,1726375345836,167.28,0.00010959,2]
[338183212,1726375503902,188.15,0.0001249,2]
[338183213,1726375529832,182.58,0.00012404,2]
[338183214,1726375531591,150.0,0.00011688,2]
[338183215,1726375537781,200.0,0.00012435,2]
[338183217,1726375553496,244.32,0.00010595,2]
[338183218,1726375626538,250.0,0.00012575,2]
[338183219,1726375684224,200.0,0.00012366,2]
[338183224,1726375832101,-260.41,0.00012645,2]
[338183225,1726375832111,-795.28681033,0.00012702,2]
[338183226,1726375832158,-345.80403217,0.00012702,2]
[338183227,1726375832212,-12212.6691575,0.00012702,2]
[338183228,1726375832223,-164.52,0.00012807,2]
[338183229,1726375832232,-244.32,0.00012859,2]
[338183230,1726375832241,-150.0,0.00012877,2]
[338183231,1726375832250,-3500.06350323,0.00012877,2]
[338183232,1726375832261,-297.04785907,0.00012877,2]
[338183233,1726375832273,-685.07691772,0.00012877,2]
[338183234,1726375832284,-10519.22699785,0.00012877,2]
[338183235,1726375832294,-150.0,0.00012879,2]
[338183236,1726375832303,-11061.27792029,0.0001288,2]
[338183237,1726375832312,-163.41210931,0.000129,2]
[338183238,1726375832321,-150.84858728,0.000129,2]
[338183239,1726375832330,-179.94875965,0.000129,2]
[338183240,1726375832339,-4408.02369982,0.000129,2]
[338183241,1726375832348,-299.5995,0.000129,2]
[338183242,1726375832357,-500.0,0.00012973,2]
[338183243,1726375832367,-500.0,0.00012999,2]
[338183244,1726375832377,-500.0,0.00012999,2]
[338183245,1726375832387,-459.83210851,0.00012999,2]
[338183247,1726375832396,-28283.85395797,0.00013,2]
[338183261,1726375832534,-790.15908962,0.00013,2]
[338183262,1726375832546,-11321.27738723,0.00013,2]
[338183263,1726375838108,-1042.82955653,0.00013,2]
[338183264,1726375838119,-288.55661629,0.00013,2]
[338183265,1726375838130,-583.44794261,0.00013,2]
[338183266,1726375838141,-795.0000001,0.00013,2]
[338183267,1726375838152,-1306.63194,0.00013,2]
[338183268,1726375838163,-563.31326908,0.00013,2]
[338183269,1726375838174,-428.61941707,0.00013,2]
[338183270,1726375838185,-824.51259311,0.00013,2]
[338183271,1726375838243,-1352.28310978,0.00013,2]
[338183272,1726375838253,-56744.41450663,0.00013,2]
[338183273,1726375838263,-830.21452822,0.00013,2]
[338183274,1726375838274,-13339.12631121,0.00013,2]
[338183275,1726375838285,-16225.01632046,0.00013,2]
[338183276,1726375838296,-32552.84912431,0.00013,2]
[338183277,1726375838307,-6912.47775104,0.00013,2]
[338183278,1726375838334,-875.69451227,0.00013,2]
[338183279,1726375838345,-1284.68,0.00013,2]
[338183280,1726375838357,-468.50164004,0.00013,2]
[338183281,1726375838368,-584.643,0.00013,2]
[338183282,1726375838379,-668.26362144,0.00013,2]
[338183283,1726375838390,-263.58033462,0.00013,2]
[338183284,1726375838401,-3161.98146989,0.00013,2]
[338183285,1726375838412,-319.8,0.00013,2]
[338183286,1726375838423,-43524.39624466,0.00013,2]
[338183287,1726375838450,-424.05391854,0.00013,2]
[338183290,1726375838608,-1158381.16511462,0.00013,2]
[338183291,1726375838620,-1433.91078519,0.00013,2]
[338183292,1726375838631,-1291.06,0.00013,2]
[338183293,1726375838641,-1944.2381269,0.00013,2]
[338183294,1726375838652,-867.57638522,0.00013,2]
[338183295,1726375838663,-498.35828287,0.00013,2]
[338183296,1726375838675,-880.16105896,0.00013,2]
[338183297,1726375838687,-453.30570109,0.00013,2]
[338183298,1726375838709,-622.21983407,0.00013,2]
[338183299,1726375838719,-3088.10000001,0.00013,2]
[338183300,1726375838754,-1017395.39717234,0.00013,2]
[338183301,1726375838767,-16045.4338332,0.00013,2]
[338183302,1726375838778,-345.0,0.00013,2]
[338183303,1726375838790,-6022.5791488,0.00013,2]
[338183304,1726375838802,-405.04694034,0.00013,2]
[338183305,1726375838813,-1768.18949562,0.00013,2]
[338183306,1726375838825,-5255.92241343,0.00013,2]
[338183307,1726375838836,-1659.66309036,0.00013,2]
[338183308,1726375838847,-781.36337718,0.00013,2]
[338183309,1726375838859,-1786.89851028,0.00013,2]
[338183310,1726375838870,-881.11399038,0.00013,2]
[338183311,1726375838882,-582.47639967,0.00013,2]
[338183312,1726375838893,-2512.71029907,0.00013,2]
[338183313,1726375838904,-26612.30646997,0.00013,2]
[338183314,1726375840087,-3014.50300993,0.00013,2]
[338183315,1726375840098,-1396.69046004,0.00013,2]
[338183316,1726375840278,-44179.61026134,0.00013,2]
[338183317,1726375840290,-2607.20000779,0.00013,2]
[338183318,1726375840326,-1387.96978456,0.00013,2]
[338183319,1726375840376,-650.81049244,0.00013,2]
[338183320,1726375840388,-104044.45362853,0.00013,2]
[338183321,1726375840399,-268488.46732053,0.00013,2]
[338183337,1726375845958,155.04,0.00010959,2]
[338183338,1726375846094,-103712.33097,0.00013,2]
[338183339,1726375899619,-3253.48514509,0.000129,2]
[338183340,1726375899642,-416597.39479762,0.00013,2]
[338183341,1726375899665,-1549149.12005729,0.00013,2]
[338183342,1726375950833,1050.0,0.00011,2]
[338183344,1726376118535,250.0,0.00012602,2]
[338183345,1726376141247,250.0,0.00012602,2]
[338183346,1726376201671,840.0,0.00012602,2]
[338183347,1726376214175,237.76,0.00010684,2]
[338183349,1726376413217,156.3,0.00010959,2]
[338183350,1726376418417,384.63,0.00012635,2]
[338183351,1726376597930,250000.0,0.000126,2]
[338183352,1726376603598,500.0,0.00012542,2]
[338183354,1726376666448,9456.0,0.000102,5]
[338183355,1726376698505,580.72,0.00012,2]
[338183356,1726376703304,250.0,0.0001247,2]
[338183357,1726376711147,500.0,0.00012,2]
[338183358,1726376719295,500.0,0.00012,2]
[338183359,1726376740072,500.0,0.00012,2]
[338183360,1726376746830,500.0,0.00012,2]
[338183361,1726376753250,500.0,0.00012,2]
[338183362,1726376760087,500.0,0.00012,2]
[338183363,1726376769126,500.0,0.00012,2]
[338183364,1726376782321,250.0,0.00012511,2]
[338183365,1726376785666,500.0,0.00012,2]
[338183366,1726376803712,162.7,0.00012403,2]
[338183367,1726376924465,23880.0,0.00012383,2]
[338183368,1726376926054,1000.0,0.00012414,2]
[338183369,1726376932446,163.22,0.00010959,2]
[338183371,1726376970296,242.98,0.00010515,2]
[338183372,1726376988944,-796.0,0.00012645,2]
[338183373,1726376988971,-453.96,0.00012686,2]
[338183375,1726376988997,-2.30954507,0.00012778,2]
[338183377,1726376989032,-240.67045493,0.00012778,2]
[338183378,1726376989058,-1011.59909014,0.00012899,2]
[338183379,1726376989342,-1252.26954507,0.00012899,2]
[338183380,1726376989387,-236.13136479,0.00012899,2]
[338183381,1726376989415,-168.46982081,0.000129,2]
[338183382,1726376989442,-408.3194,0.000129,2]
[338183383,1726376989468,-244.96265829,0.000129,2]
[338183390,1726377038507,-363.81151898,0.00012642,2]
[338183391,1726377038517,-3722.25867153,0.000129,2]
[338183392,1726377038527,-1000.0,0.000129,2]
[338183393,1726377038536,-501.97786434,0.00012973,2]
[338183394,1726377038546,-6309.42137716,0.0001299,2]
[338183395,1726377038556,-500.0,0.00012998,2]
[338183396,1726377038566,-500.0,0.00012998,2]
[338183397,1726377038576,-448.03869923,0.00012998,2]
[338183398,1726377038586,-1506.78,0.00012998,2]
[338183399,1726377038595,-2055.25,0.00012998,2]
[338183400,1726377038604,-1207.94,0.00012998,2]
[338183401,1726377038613,-500.0,0.00012998,2]
[338183402,1726377038623,-688.26,0.00012998,2]
[338183403,1726377038632,-2231.89,0.00012998,2]
[338183404,1726377038642,-1739.09,0.00012998,2]
[338183405,1726377038651,-1155.38,0.00012998,2]
[338183406,1726377038660,-1566.97,0.00012998,2]
[338183407,1726377038669,-5591.24,0.00012998,2]
[338183409,1726377038678,-304.11291158,0.00012998,2]
[338183411,1726377038688,-446.55841638,0.00012998,2]
[338183413,1726377038697,-2367.29,0.00012998,2]
[338183415,1726377038706,-500.0,0.00012998,2]
[338183417,1726377038715,-1586.01,0.00012998,2]
[338183419,1726377038724,-1859.99,0.00012998,2]
[338183421,1726377038734,-430.33075335,0.00012998,2]
[338183423,1726377038744,-500.0,0.00012998,2]
[338183425,1726377038753,-1561.5,0.00012998,2]
[338183426,1726377038762,-100000.0,0.00012998,2]
[338183428,1726377038771,-856.86,0.00012998,2]
[338183430,1726377038780,-831.08,0.00012998,2]
[338183432,1726377038789,-1788.5,0.00012998,2]
[338183434,1726377038798,-2802.21,0.00012998,2]
[338183436,1726377038807,-1754.87,0.00012998,2]
[338183438,1726377038816,-198.68888644,0.00012998,2]
[338183440,1726377038825,-500.0,0.00012998,2]
[338183442,1726377038834,-1204.93,0.00012998,2]
[338183444,1726377038843,-500.0,0.00012998,2]
[338183446,1726377038852,-801.83,0.00012998,2]
[338183448,1726377038861,-1882.05,0.00012998,2]
[338183449,1726377038871,-500.0,0.00012998,2]
[338183451,1726377038881,-654.58,0.00012999,2]
[338183453,1726377038890,-531.07,0.00012999,2]
[338183455,1726377038899,-2075.94,0.00012999,2]
[338183457,1726377038908,-500.0,0.00012999,2]
[338183459,1726377038917,-1153.42,0.00012999,2]
[338183461,1726377038927,-500.0,0.00012999,2]
[338183463,1726377038936,-866.28,0.00012999,2]
[338183465,1726377038945,-767.85,0.00012999,2]
[338183466,1726377038954,-500.0,0.00012999,2]
[338183468,1726377038963,-500.0,0.00012999,2]
[338183470,1726377038973,-500.0,0.00012999,2]
[338183472,1726377038982,-585.42,0.00012999,2]
[338183474,1726377038992,-2695.21,0.00012999,2]
[338183476,1726377039002,-500.0,0.00012999,2]
[338183478,1726377039011,-2003.14,0.00012999,2]
[338183480,1726377039020,-1733.71,0.00012999,2]
[338183482,1726377039030,-500.0,0.00012999,2]
[338183484,1726377039040,-1310.88,0.00012999,2]
[338183486,1726377039049,-1008.41,0.00012999,2]
[338183488,1726377039058,-500.0,0.00012999,2]
[338183490,1726377039068,-500.0,0.00012999,2]
[338183492,1726377039078,-500.0,0.00012999,2]
[338183494,1726377039087,-500.0,0.00012999,2]
[338183496,1726377039096,-287.82512961,0.00012999,2]
[338183498,1726377039108,-501.42620516,0.00012999,2]
[338183500,1726377039117,-500.0,0.00012999,2]
[338183502,1726377039127,-590.85,0.00012999,2]
[338183504,1726377039137,-594.3,0.00012999,2]
[338183506,1726377039146,-500.0,0.00012999,2]
[338183508,1726377039156,-500.0,0.00012999,2]
[338183510,1726377039166,-402.30640818,0.00012999,2]
[338183512,1726377039176,-500.0,0.00012999,2]
[338183514,1726377039185,-500.0,0.00012999,2]
[338183516,1726377039194,-500.0,0.00012999,2]
[338183518,1726377039203,-500.0,0.00012999,2]
[338183520,1726377039212,-518.95553613,0.00012999,2]
[338183521,1726377039221,-1773.6,0.00012999,2]
[338183523,1726377039230,-150.27484667,0.00012999,2]
[338183525,1726377039240,-457.09587513,0.00012999,2]
[338183527,1726377039250,-503.3479467,0.00012999,2]
[338183529,1726377039260,-500.0,0.00012999,2]
[338183531,1726377039269,-829.57,0.00012999,2]
[338183533,1726377039280,-500.0,0.00012999,2]
[338183535,1726377039289,-500.0,0.00012999,2]
[338183537,1726377039299,-951.51,0.00012999,2]
[338183539,1726377039308,-500.0,0.00012999,2]
[338183541,1726377039317,-500.0,0.00012999,2]
[338183543,1726377039327,-500.0,0.00012999,2]
[338183545,1726377039337,-310.64924788,0.00012999,2]
[338183547,1726377039346,-500.0,0.00012999,2]
[338183549,1726377039356,-1045.64,0.00012999,2]
[338183551,1726377039365,-1094.54,0.00012999,2]
[338183553,1726377039374,-500.0,0.00012999,2]
[338183555,1726377039384,-500.0,0.00012999,2]
[338183557,1726377039393,-1306.2,0.00012999,2]
[338183559,1726377039402,-500.0,0.00012999,2]
[338183561,1726377039411,-500.0,0.00012999,2]
[338183563,1726377039420,-500.0,0.00012999,2]
[338183564,1726377039429,-500.0,0.00012999,2]
[338183566,1726377039439,-962.09,0.00012999,2]
[338183568,1726377039448,-1672.85,0.00012999,2]
[338183570,1726377039457,-500.0,0.00012999,2]
[338183572,1726377039466,-169.04849082,0.00012999,2]
[338183574,1726377039476,-696.58,0.00012999,2]
[338183576,1726377039485,-500.0,0.00012999,2]
[338183578,1726377039497,-535.47,0.00012999,2]
[338183581,1726377039507,-500.0,0.00012999,2]
[338183582,1726377039516,-500.0,0.00012999,2]
[338183584,1726377039525,-500.0,0.00012999,2]
[338183586,1726377039535,-229.31671071,0.00012999,2]
[338183588,1726377039544,-619.52,0.00012999,2]
[338183590,1726377039553,-687.91,0.00012999,2]
[338183593,1726377039563,-500.0,0.00012999,2]